[Event "Titled Tuesday Blitz July 18 Early 2023"]
[White "Todorovic, Bojan"]
[Black "Garv Gaur"]
[WhiteFideId "917087"]
[BlackFideId "45030839"]
[WhiteElo "2446"]
[BlackElo "2565"]
[Result "0-1"]
[Round "11"]
[TimeControl "180+2"]
[Date "2023.07.18"]
[WhiteClock "0:00:00"]
[BlackClock "0:00:21"]
[Board "67"]

1. d4 {[%clk 0:02:59]}  Nf6 {[%clk 0:02:59]} 2. c4 {[%clk 0:02:59]}  e6 {[%clk 0:02:58]} 3. Nf3 {[%clk 0:02:58]}  b6 {[%clk 0:02:58]} 4. g3 {[%clk 0:02:57]}  Ba6 {[%clk 0:02:57]} 5. b3 {[%clk 0:02:56]}  Bb4+ {[%clk 0:02:57]} 6. Bd2 {[%clk 0:02:55]}  Be7 {[%clk 0:02:53]} 7. Bg2 {[%clk 0:02:51]}  c6 {[%clk 0:02:53]} 8. Bc3 {[%clk 0:02:48]}  d5 {[%clk 0:02:53]} 9. Nbd2 {[%clk 0:02:47]}  O-O {[%clk 0:02:51]} 10. O-O {[%clk 0:02:46]}  c5 {[%clk 0:02:51]} 11. dxc5 {[%clk 0:02:42]}  bxc5 {[%clk 0:02:51]} 12. Qc2 {[%clk 0:02:36]}  Nc6 {[%clk 0:02:50]} 13. Ne5 {[%clk 0:02:33]}  Qc7 {[%clk 0:02:45]} 14. Nxc6 {[%clk 0:02:30]}  Qxc6 {[%clk 0:02:46]} 15. e4 {[%clk 0:02:24]}  Qc7 {[%clk 0:02:32]} 16. exd5 {[%clk 0:02:17]}  exd5 {[%clk 0:02:30]} 17. Bxf6 {[%clk 0:02:17]}  Bxf6 {[%clk 0:02:29]} 18. Bxd5 {[%clk 0:02:17]}  Bxa1 {[%clk 0:02:29]} 19. Bxa8 {[%clk 0:02:12]}  Bd4 {[%clk 0:02:29]} 20. Bd5 {[%clk 0:02:08]}  Bb7 {[%clk 0:02:22]} 21. Nf3 {[%clk 0:02:00]}  Bf6 {[%clk 0:02:16]} 22. Bxb7 {[%clk 0:01:49]}  Qxb7 {[%clk 0:02:16]} 23. Qf5 {[%clk 0:01:47]}  Qc6 {[%clk 0:02:06]} 24. Rd1 {[%clk 0:01:40]}  g6 {[%clk 0:02:05]} 25. Qd5 {[%clk 0:01:39]}  Qb6 {[%clk 0:02:02]} 26. Ng5 {[%clk 0:01:18]}  Kg7 {[%clk 0:01:52]} 27. h4 {[%clk 0:01:14]}  h6 {[%clk 0:01:52]} 28. Ne4 {[%clk 0:01:11]}  Rd8 {[%clk 0:01:52]} 29. Nd6 {[%clk 0:01:11]}  Qc7 {[%clk 0:01:50]} 30. Kg2 {[%clk 0:00:57]}  Be7 {[%clk 0:01:46]} 31. Qxf7+ {[%clk 0:00:56]}  Kh8 {[%clk 0:01:44]} 32. Ne8 {[%clk 0:00:41]}  Qc6+ {[%clk 0:01:43]} 33. Kh2 {[%clk 0:00:41]}  Qxe8 {[%clk 0:01:43]} 34. Rxd8 {[%clk 0:00:35]}  Qxd8 {[%clk 0:01:44]} 35. Qxg6 {[%clk 0:00:36]}  Bf8 {[%clk 0:01:44]} 36. Qf7 {[%clk 0:00:29]}  Bg7 {[%clk 0:01:42]} 37. Qxa7 {[%clk 0:00:28]}  Qd4 {[%clk 0:01:42]} 38. Qf7 {[%clk 0:00:26]}  Qf6 {[%clk 0:01:10]} 39. Qe8+ {[%clk 0:00:19]}  Kh7 {[%clk 0:01:10]} 40. Kg2 {[%clk 0:00:18]}  Qf5 {[%clk 0:01:07]} 41. h5 {[%clk 0:00:16]}  Bd4 {[%clk 0:01:05]} 42. f3 {[%clk 0:00:12]}  Qc2+ {[%clk 0:01:02]} 43. Kh3 {[%clk 0:00:12]}  Qf5+ {[%clk 0:01:02]} 44. Kg2 {[%clk 0:00:13]}  Bg7 {[%clk 0:01:01]} 45. g4 {[%clk 0:00:10]}  Qc2+ {[%clk 0:01:00]} 46. Kg3 {[%clk 0:00:11]}  Qb1 {[%clk 0:00:50]} 47. Kf4 {[%clk 0:00:05]}  Qc1+ {[%clk 0:00:40]} 48. Kf5 {[%clk 0:00:06]}  Qc2+ {[%clk 0:00:30]} 49. Ke6 {[%clk 0:00:05]}  Qe2+ {[%clk 0:00:28]} 50. Kd7 {[%clk 0:00:05]}  Qxf3 {[%clk 0:00:28]} 51. Qg6+ {[%clk 0:00:04]}  Kh8 {[%clk 0:00:25]} 52. Kd6 {[%clk 0:00:02]}  Qf4+ {[%clk 0:00:24]} 53. Kc6 {[%clk 0:00:02]}  Qf3+ {[%clk 0:00:21]} 54. Kxc5 {[%clk 0:00:02]}  Bf8+ {[%clk 0:00:21]} 55. Kb5 {[%clk 0:00:00]}  Qb7+ {[%clk 0:00:21]} 0-1


[Site "https://www.chess.com"]

[Event "Titled Tuesday Blitz July 18 Early 2023"]
[White "Gabdushev, Ruslan"]
[Black "Goltsev, Dmitry"]
[WhiteFideId "4137833"]
[BlackFideId "24176710"]
[WhiteElo "2435"]
[BlackElo "2707"]
[Result "0-1"]
[Round "11"]
[TimeControl "180+2"]
[Date "2023.07.18"]
[WhiteClock "0:00:07"]
[BlackClock "0:02:04"]
[Board "70"]

1. b3 {[%clk 0:02:59]}  Nf6 {[%clk 0:02:58]} 2. Bb2 {[%clk 0:02:59]}  g6 {[%clk 0:02:58]} 3. Bxf6 {[%clk 0:02:58]}  exf6 {[%clk 0:02:59]} 4. e3 {[%clk 0:02:58]}  f5 {[%clk 0:02:59]} 5. g3 {[%clk 0:02:58]}  Bg7 {[%clk 0:03:00]} 6. d4 {[%clk 0:02:58]}  O-O {[%clk 0:03:00]} 7. Bg2 {[%clk 0:02:58]}  d5 {[%clk 0:03:01]} 8. Ne2 {[%clk 0:02:57]}  c6 {[%clk 0:03:02]} 9. O-O {[%clk 0:02:56]}  Nd7 {[%clk 0:03:02]} 10. c4 {[%clk 0:02:53]}  Nf6 {[%clk 0:03:01]} 11. Nbc3 {[%clk 0:02:49]}  Ne4 {[%clk 0:03:00]} 12. cxd5 {[%clk 0:02:48]}  cxd5 {[%clk 0:03:01]} 13. Rc1 {[%clk 0:02:47]}  g5 {[%clk 0:02:59]} 14. Qd3 {[%clk 0:02:39]}  a6 {[%clk 0:02:57]} 15. b4 {[%clk 0:02:26]}  Be6 {[%clk 0:02:55]} 16. Na4 {[%clk 0:02:24]}  Qe7 {[%clk 0:02:52]} 17. a3 {[%clk 0:02:15]}  Rac8 {[%clk 0:02:50]} 18. Nb6 {[%clk 0:02:12]}  Rxc1 {[%clk 0:02:48]} 19. Rxc1 {[%clk 0:02:11]}  Qd6 {[%clk 0:02:49]} 20. Na4 {[%clk 0:02:07]}  Bd7 {[%clk 0:02:42]} 21. Nc5 {[%clk 0:02:00]}  Bb5 {[%clk 0:02:41]} 22. Qd1 {[%clk 0:01:56]}  b6 {[%clk 0:02:38]} 23. Nxe4 {[%clk 0:01:55]}  fxe4 {[%clk 0:02:38]} 24. Nc3 {[%clk 0:01:50]}  Bc4 {[%clk 0:02:36]} 25. Bf1 {[%clk 0:01:45]}  f5 {[%clk 0:02:34]} 26. Bxc4 {[%clk 0:01:31]}  dxc4 {[%clk 0:02:35]} 27. Qe2 {[%clk 0:01:00]}  b5 {[%clk 0:02:34]} 28. Qb2 {[%clk 0:00:57]}  Qe6 {[%clk 0:02:32]} 29. a4 {[%clk 0:00:55]}  f4 {[%clk 0:02:27]} 30. axb5 {[%clk 0:00:54]}  f3 {[%clk 0:02:27]} 31. Kf1 {[%clk 0:00:41]}  Qh3+ {[%clk 0:02:18]} 32. Ke1 {[%clk 0:00:41]}  Qxh2 {[%clk 0:02:16]} 33. Nd1 {[%clk 0:00:40]}  axb5 {[%clk 0:02:11]} 34. Qa2 {[%clk 0:00:38]}  Bxd4 {[%clk 0:02:05]} 35. exd4 {[%clk 0:00:35]}  e3 {[%clk 0:02:05]} 36. Nxe3 {[%clk 0:00:24]}  Qg1+ {[%clk 0:02:05]} 37. Nf1 {[%clk 0:00:07]}  Re8+ {[%clk 0:02:04]} 0-1


[Site "https://www.chess.com"]

[Event "Titled Tuesday Blitz July 18 Early 2023"]
[White "Sathish, Pranav"]
[Black "Zaragatski, Ilja"]
[WhiteFideId "30967538"]
[BlackFideId "4655192"]
[WhiteElo "2474"]
[BlackElo "2593"]
[Result "0-1"]
[Round "11"]
[TimeControl "180+2"]
[Date "2023.07.18"]
[WhiteClock "0:00:41"]
[BlackClock "0:00:07"]
[Board "73"]

1. Nf3 {[%clk 0:03:00]}  Nf6 {[%clk 0:02:55]} 2. b3 {[%clk 0:02:59]}  c5 {[%clk 0:02:54]} 3. Bb2 {[%clk 0:02:59]}  e6 {[%clk 0:02:55]} 4. c4 {[%clk 0:02:59]}  Be7 {[%clk 0:02:54]} 5. e3 {[%clk 0:02:59]}  O-O {[%clk 0:02:54]} 6. Be2 {[%clk 0:03:00]}  b6 {[%clk 0:02:54]} 7. O-O {[%clk 0:03:01]}  Bb7 {[%clk 0:02:54]} 8. Nc3 {[%clk 0:03:01]}  d6 {[%clk 0:02:55]} 9. d4 {[%clk 0:03:00]}  Nbd7 {[%clk 0:02:55]} 10. Rc1 {[%clk 0:03:00]}  a6 {[%clk 0:02:54]} 11. a4 {[%clk 0:02:59]}  Ne4 {[%clk 0:02:54]} 12. Nxe4 {[%clk 0:02:58]}  Bxe4 {[%clk 0:02:54]} 13. Bd3 {[%clk 0:02:55]}  Nf6 {[%clk 0:02:49]} 14. Bxe4 {[%clk 0:02:54]}  Nxe4 {[%clk 0:02:48]} 15. d5 {[%clk 0:02:54]}  Qd7 {[%clk 0:02:34]} 16. Qd3 {[%clk 0:02:53]}  exd5 {[%clk 0:02:25]} 17. Qxd5 {[%clk 0:02:52]}  Qe6 {[%clk 0:02:14]} 18. Rfd1 {[%clk 0:02:49]}  Rad8 {[%clk 0:02:11]} 19. Qb7 {[%clk 0:02:40]}  f5 {[%clk 0:01:46]} 20. Qxa6 {[%clk 0:02:36]}  g5 {[%clk 0:01:43]} 21. Qb7 {[%clk 0:02:35]}  g4 {[%clk 0:01:42]} 22. Ne1 {[%clk 0:02:33]}  f4 {[%clk 0:01:28]} 23. Qd5 {[%clk 0:02:25]}  Qxd5 {[%clk 0:01:27]} 24. Rxd5 {[%clk 0:02:24]}  fxe3 {[%clk 0:01:25]} 25. fxe3 {[%clk 0:02:19]}  Bg5 {[%clk 0:01:23]} 26. Nc2 {[%clk 0:02:16]}  Rf7 {[%clk 0:00:52]} 27. Rf1 {[%clk 0:02:02]}  Rdf8 {[%clk 0:00:52]} 28. Rxf7 {[%clk 0:02:00]}  Rxf7 {[%clk 0:00:53]} 29. Bc3 {[%clk 0:01:31]}  Kf8 {[%clk 0:00:49]} 30. Be1 {[%clk 0:01:30]}  Ke7 {[%clk 0:00:43]} 31. Rd3 {[%clk 0:01:15]}  h5 {[%clk 0:00:40]} 32. h4 {[%clk 0:01:12]}  Bf6 {[%clk 0:00:29]} 33. g3 {[%clk 0:01:11]}  Be5 {[%clk 0:00:29]} 34. b4 {[%clk 0:01:01]}  Rf3 {[%clk 0:00:27]} 35. a5 {[%clk 0:00:59]}  bxa5 {[%clk 0:00:17]} 36. bxa5 {[%clk 0:00:59]}  Bxg3 {[%clk 0:00:12]} 37. Bxg3 {[%clk 0:00:57]}  Rxg3+ {[%clk 0:00:13]} 38. Kh2 {[%clk 0:00:55]}  Rh3+ {[%clk 0:00:14]} 39. Kg2 {[%clk 0:00:54]}  Rg3+ {[%clk 0:00:14]} 40. Kh2 {[%clk 0:00:54]}  Rf3 {[%clk 0:00:15]} 41. Kg1 {[%clk 0:00:52]}  Rf2 {[%clk 0:00:13]} 42. a6 {[%clk 0:00:49]}  Rxc2 {[%clk 0:00:13]} 43. Ra3 {[%clk 0:00:48]}  Rc1+ {[%clk 0:00:12]} 44. Kg2 {[%clk 0:00:48]}  Rc2+ {[%clk 0:00:12]} 45. Kg1 {[%clk 0:00:48]}  Nd2 {[%clk 0:00:07]} 46. a7 {[%clk 0:00:46]}  Nf3+ {[%clk 0:00:07]} 47. Kf1 {[%clk 0:00:41]}  g3 {[%clk 0:00:07]} 0-1


[Site "https://www.chess.com"]

[Event "Titled Tuesday Blitz July 18 Early 2023"]
[White "Martin Barcelo, Carles"]
[Black "Al-Tarboush, Ward"]
[WhiteFideId "24561444"]
[BlackFideId "7601450"]
[WhiteElo "2469"]
[BlackElo "2587"]
[Result "1-0"]
[Round "11"]
[TimeControl "180+2"]
[Date "2023.07.18"]
[WhiteClock "0:00:51"]
[BlackClock "0:00:14"]
[Board "75"]

1. e4 {[%clk 0:03:00]}  c5 {[%clk 0:02:36]} 2. Nc3 {[%clk 0:03:00]}  Nc6 {[%clk 0:02:32]} 3. a3 {[%clk 0:02:57]}  e6 {[%clk 0:02:30]} 4. Nf3 {[%clk 0:02:57]}  g6 {[%clk 0:02:27]} 5. d4 {[%clk 0:02:55]}  cxd4 {[%clk 0:02:27]} 6. Nxd4 {[%clk 0:02:56]}  Bg7 {[%clk 0:02:27]} 7. Ndb5 {[%clk 0:02:56]}  Bxc3+ {[%clk 0:02:20]} 8. Nxc3 {[%clk 0:02:50]}  Nge7 {[%clk 0:02:19]} 9. Bh6 {[%clk 0:02:49]}  b6 {[%clk 0:02:12]} 10. Qd6 {[%clk 0:02:46]}  Bb7 {[%clk 0:02:06]} 11. O-O-O {[%clk 0:02:46]}  Nc8 {[%clk 0:02:01]} 12. Qf4 {[%clk 0:02:44]}  d6 {[%clk 0:01:57]} 13. Bc4 {[%clk 0:02:38]}  Qc7 {[%clk 0:01:54]} 14. Qf6 {[%clk 0:02:17]}  Rg8 {[%clk 0:01:49]} 15. Bxe6 {[%clk 0:02:12]}  Qe7 {[%clk 0:01:47]} 16. Nd5 {[%clk 0:02:04]}  Qxf6 {[%clk 0:01:40]} 17. Nxf6+ {[%clk 0:02:05]}  Ke7 {[%clk 0:01:40]} 18. Nxg8+ {[%clk 0:02:05]}  Kxe6 {[%clk 0:01:40]} 19. Bg5 {[%clk 0:01:47]}  b5 {[%clk 0:01:34]} 20. h4 {[%clk 0:01:37]}  Nb6 {[%clk 0:01:29]} 21. Nh6 {[%clk 0:01:35]}  b4 {[%clk 0:01:26]} 22. axb4 {[%clk 0:01:35]}  Nxb4 {[%clk 0:01:26]} 23. Bf4 {[%clk 0:01:32]}  Rd8 {[%clk 0:01:21]} 24. Rd4 {[%clk 0:01:32]}  Nc6 {[%clk 0:01:17]} 25. Rd2 {[%clk 0:01:32]}  Nc4 {[%clk 0:01:15]} 26. Rd3 {[%clk 0:01:31]}  N6e5 {[%clk 0:00:50]} 27. Bxe5 {[%clk 0:01:22]}  Nxe5 {[%clk 0:00:51]} 28. Rd4 {[%clk 0:01:22]}  Rc8 {[%clk 0:00:37]} 29. Rhd1 {[%clk 0:01:18]}  Rc6 {[%clk 0:00:30]} 30. f4 {[%clk 0:01:16]}  Nc4 {[%clk 0:00:28]} 31. f5+ {[%clk 0:01:12]}  Ke5 {[%clk 0:00:28]} 32. Ng4+ {[%clk 0:01:01]}  Kf4 {[%clk 0:00:27]} 33. e5+ {[%clk 0:01:01]}  Kxf5 {[%clk 0:00:26]} 34. exd6 {[%clk 0:00:54]}  h5 {[%clk 0:00:22]} 35. Rxc4 {[%clk 0:00:51]}  Rxc4 {[%clk 0:00:14]} 36. Ne3+ {[%clk 0:00:51]} 1-0


[Site "https://www.chess.com"]

[Event "Titled Tuesday Blitz July 18 Early 2023"]
[White "Ezat, Mohamed"]
[Black "Bendayan Claros, Aaron"]
[WhiteFideId "10600906"]
[BlackFideId "3803392"]
[WhiteElo "2542"]
[BlackElo "2456"]
[Result "1-0"]
[Round "11"]
[TimeControl "180+2"]
[Date "2023.07.18"]
[WhiteClock "0:00:09"]
[BlackClock "0:00:05"]
[Board "78"]

1. d4 {[%clk 0:02:56]}  d5 {[%clk 0:03:00]} 2. c4 {[%clk 0:02:56]}  e6 {[%clk 0:02:58]} 3. Nc3 {[%clk 0:02:55]}  c6 {[%clk 0:02:58]} 4. e4 {[%clk 0:02:54]}  dxe4 {[%clk 0:02:59]} 5. Nxe4 {[%clk 0:02:54]}  Bb4+ {[%clk 0:03:00]} 6. Bd2 {[%clk 0:02:53]}  Bxd2+ {[%clk 0:03:00]} 7. Qxd2 {[%clk 0:02:52]}  Nf6 {[%clk 0:03:00]} 8. Nxf6+ {[%clk 0:02:47]}  Qxf6 {[%clk 0:03:01]} 9. Nf3 {[%clk 0:02:47]}  O-O {[%clk 0:03:01]} 10. O-O-O {[%clk 0:02:47]}  Nd7 {[%clk 0:02:57]} 11. Qe3 {[%clk 0:02:47]}  b5 {[%clk 0:02:56]} 12. c5 {[%clk 0:02:41]}  a5 {[%clk 0:02:41]} 13. Bd3 {[%clk 0:02:40]}  Rd8 {[%clk 0:02:31]} 14. Be4 {[%clk 0:02:33]}  Bb7 {[%clk 0:02:29]} 15. Ne5 {[%clk 0:02:31]}  Rac8 {[%clk 0:02:26]} 16. f4 {[%clk 0:02:28]}  Qh6 {[%clk 0:02:14]} 17. g4 {[%clk 0:02:22]}  Qh4 {[%clk 0:02:05]} 18. g5 {[%clk 0:02:14]}  Nxe5 {[%clk 0:02:00]} 19. dxe5 {[%clk 0:02:09]}  Rxd1+ {[%clk 0:02:00]} 20. Rxd1 {[%clk 0:02:08]}  b4 {[%clk 0:01:53]} 21. Qg3 {[%clk 0:01:57]}  Qh5 {[%clk 0:01:48]} 22. Qf3 {[%clk 0:01:48]}  Qh4 {[%clk 0:01:46]} 23. b3 {[%clk 0:01:29]}  h6 {[%clk 0:01:32]} 24. Qg3 {[%clk 0:01:12]}  Qh5 {[%clk 0:00:33]} 25. g6 {[%clk 0:01:00]}  fxg6 {[%clk 0:00:21]} 26. Rd7 {[%clk 0:00:50]}  Qe2 {[%clk 0:00:17]} 27. Bxg6 {[%clk 0:00:10]}  Ba6 {[%clk 0:00:05]} 28. Bh7+ {[%clk 0:00:09]} 1-0


[Site "https://www.chess.com"]

[Event "Titled Tuesday Blitz July 18 Early 2023"]
[White "Garakov, Mikhael"]
[Black "Ai, Evan"]
[WhiteFideId "4169034"]
[BlackFideId "2094770"]
[WhiteElo "2526"]
[BlackElo "2444"]
[Result "0-1"]
[Round "11"]
[TimeControl "180+2"]
[Date "2023.07.18"]
[WhiteClock "0:00:53"]
[BlackClock "0:02:12"]
[Board "80"]

1. e4 {[%clk 0:03:00]}  e5 {[%clk 0:03:00]} 2. Nf3 {[%clk 0:03:00]}  Nc6 {[%clk 0:03:00]} 3. Bb5 {[%clk 0:02:58]}  a6 {[%clk 0:02:59]} 4. Bxc6 {[%clk 0:02:57]}  dxc6 {[%clk 0:03:00]} 5. O-O {[%clk 0:02:54]}  f6 {[%clk 0:03:00]} 6. d4 {[%clk 0:02:54]}  exd4 {[%clk 0:02:59]} 7. Nxd4 {[%clk 0:02:55]}  Bc5 {[%clk 0:02:57]} 8. Nb3 {[%clk 0:02:52]}  Qxd1 {[%clk 0:02:57]} 9. Rxd1 {[%clk 0:02:51]}  Bb6 {[%clk 0:02:58]} 10. a4 {[%clk 0:02:45]}  Bg4 {[%clk 0:02:50]} 11. Re1 {[%clk 0:02:41]}  Ne7 {[%clk 0:02:39]} 12. a5 {[%clk 0:02:39]}  Ba7 {[%clk 0:02:39]} 13. h3 {[%clk 0:02:35]}  Be6 {[%clk 0:02:38]} 14. Nc3 {[%clk 0:02:22]}  O-O-O {[%clk 0:02:38]} 15. Be3 {[%clk 0:02:19]}  Bxe3 {[%clk 0:02:34]} 16. Rxe3 {[%clk 0:02:18]}  Bxb3 {[%clk 0:02:34]} 17. cxb3 {[%clk 0:02:18]}  Ng6 {[%clk 0:02:35]} 18. g3 {[%clk 0:02:15]}  Rd2 {[%clk 0:02:34]} 19. Rb1 {[%clk 0:02:07]}  Ne5 {[%clk 0:02:32]} 20. Re2 {[%clk 0:02:01]}  Rhd8 {[%clk 0:02:30]} 21. f4 {[%clk 0:01:58]}  Rxe2 {[%clk 0:02:19]} 22. Nxe2 {[%clk 0:01:58]}  Nf3+ {[%clk 0:02:19]} 23. Kf2 {[%clk 0:01:54]}  Nd2 {[%clk 0:02:20]} 24. Rc1 {[%clk 0:01:39]}  Nxe4+ {[%clk 0:02:19]} 25. Ke3 {[%clk 0:01:32]}  Nd6 {[%clk 0:02:19]} 26. Nc3 {[%clk 0:01:17]}  Re8+ {[%clk 0:02:20]} 27. Kf3 {[%clk 0:01:17]}  Nf5 {[%clk 0:02:20]} 28. g4 {[%clk 0:01:02]}  Nd4+ {[%clk 0:02:17]} 29. Kf2 {[%clk 0:01:01]}  Nxb3 {[%clk 0:02:17]} 30. Rg1 {[%clk 0:00:59]}  Nxa5 {[%clk 0:02:16]} 31. g5 {[%clk 0:01:00]}  f5 {[%clk 0:02:15]} 32. g6 {[%clk 0:01:00]}  h6 {[%clk 0:02:13]} 33. Ne2 {[%clk 0:01:00]}  Nc4 {[%clk 0:02:13]} 34. Nd4 {[%clk 0:00:53]}  Re4 {[%clk 0:02:12]} 0-1


[Site "https://www.chess.com"]

[Event "Titled Tuesday Blitz July 18 Early 2023"]
[White "Pershina, Elena"]
[Black "ArtemDyachuk"]
[WhiteFideId "24147516"]
[WhiteElo "2365"]
[BlackElo "2517"]
[Result "0-1"]
[Round "11"]
[TimeControl "180+2"]
[Date "2023.07.18"]
[WhiteClock "0:00:05"]
[BlackClock "0:00:58"]
[Board "83"]

1. c4 {[%clk 0:03:00]}  e5 {[%clk 0:02:57]} 2. g3 {[%clk 0:03:00]}  Nf6 {[%clk 0:02:54]} 3. Bg2 {[%clk 0:02:59]}  d5 {[%clk 0:02:54]} 4. cxd5 {[%clk 0:03:00]}  Nxd5 {[%clk 0:02:55]} 5. Nc3 {[%clk 0:03:00]}  Nb6 {[%clk 0:02:54]} 6. e3 {[%clk 0:02:58]}  Nc6 {[%clk 0:02:54]} 7. Nge2 {[%clk 0:02:58]}  Bf5 {[%clk 0:02:53]} 8. O-O {[%clk 0:02:54]}  Nb4 {[%clk 0:02:51]} 9. f4 {[%clk 0:02:51]}  Bc2 {[%clk 0:02:50]} 10. Qe1 {[%clk 0:02:41]}  Nd3 {[%clk 0:02:49]} 11. Bxb7 {[%clk 0:02:39]}  Nxe1 {[%clk 0:02:49]} 12. Bc6+ {[%clk 0:02:39]}  Nd7 {[%clk 0:02:47]} 13. fxe5 {[%clk 0:02:32]}  Nd3 {[%clk 0:02:45]} 14. e6 {[%clk 0:02:18]}  fxe6 {[%clk 0:02:42]} 15. Nd4 {[%clk 0:02:18]}  Ne5 {[%clk 0:02:37]} 16. Nxe6 {[%clk 0:02:16]}  Qe7 {[%clk 0:02:36]} 17. Nxc7+ {[%clk 0:02:15]}  Kd8 {[%clk 0:02:36]} 18. N3d5 {[%clk 0:02:08]}  Qg5 {[%clk 0:02:24]} 19. Bxa8 {[%clk 0:02:04]}  Qg4 {[%clk 0:02:20]} 20. d4 {[%clk 0:01:41]}  Nf3+ {[%clk 0:02:18]} 21. Rxf3 {[%clk 0:01:38]}  Qxf3 {[%clk 0:02:17]} 22. Ne6+ {[%clk 0:01:38]}  Kc8 {[%clk 0:02:13]} 23. Nb6+ {[%clk 0:01:36]}  Nxb6 {[%clk 0:02:13]} 24. Bxf3 {[%clk 0:01:36]}  Bd6 {[%clk 0:02:13]} 25. Bd2 {[%clk 0:01:34]}  Kd7 {[%clk 0:02:07]} 26. Nxg7 {[%clk 0:01:31]}  Rg8 {[%clk 0:02:07]} 27. Nh5 {[%clk 0:01:28]}  Nc4 {[%clk 0:02:06]} 28. Bd5 {[%clk 0:01:17]}  Rc8 {[%clk 0:02:02]} 29. Bc3 {[%clk 0:00:50]}  Nxe3 {[%clk 0:01:59]} 30. Nf6+ {[%clk 0:00:42]}  Kd8 {[%clk 0:01:45]} 31. Bf3 {[%clk 0:00:32]}  Bg6 {[%clk 0:01:26]} 32. Re1 {[%clk 0:00:30]}  Nc4 {[%clk 0:01:25]} 33. d5 {[%clk 0:00:24]}  Bc5+ {[%clk 0:01:23]} 34. Kh1 {[%clk 0:00:20]}  Bb6 {[%clk 0:01:12]} 35. Ne4 {[%clk 0:00:19]}  Ne3 {[%clk 0:01:08]} 36. Bf6+ {[%clk 0:00:17]}  Kd7 {[%clk 0:01:05]} 37. Rxe3 {[%clk 0:00:17]}  Rc1+ {[%clk 0:01:05]} 38. Kg2 {[%clk 0:00:16]}  Bxe3 {[%clk 0:01:05]} 39. Bg4+ {[%clk 0:00:15]}  Ke8 {[%clk 0:01:04]} 40. Nd6+ {[%clk 0:00:14]}  Kf8 {[%clk 0:01:03]} 41. Nf5 {[%clk 0:00:12]}  Rc2+ {[%clk 0:01:02]} 42. Kh3 {[%clk 0:00:09]}  Bg1 {[%clk 0:01:01]} 43. Be7+ {[%clk 0:00:08]}  Kf7 {[%clk 0:01:00]} 44. Kh4 {[%clk 0:00:07]}  Rxh2+ {[%clk 0:00:59]} 45. Kg5 {[%clk 0:00:07]}  Bxf5 {[%clk 0:00:59]} 46. Bxf5 {[%clk 0:00:05]}  Kxe7 {[%clk 0:00:58]} 0-1


[Site "https://www.chess.com"]

[Event "Titled Tuesday Blitz July 18 Early 2023"]
[White "Tomaszewski, Kacper"]
[Black "Turzo, Attila"]
[WhiteFideId "1127373"]
[BlackFideId "704954"]
[WhiteElo "2493"]
[BlackElo "2514"]
[Result "0-1"]
[Round "11"]
[TimeControl "180+2"]
[Date "2023.07.18"]
[WhiteClock "0:00:00"]
[BlackClock "0:00:32"]
[Board "84"]

1. d4 {[%clk 0:03:00]}  Nf6 {[%clk 0:02:59]} 2. Nf3 {[%clk 0:03:00]}  g6 {[%clk 0:02:59]} 3. Nbd2 {[%clk 0:02:59]}  Bg7 {[%clk 0:02:56]} 4. e4 {[%clk 0:02:59]}  d6 {[%clk 0:02:57]} 5. Bb5+ {[%clk 0:02:59]}  c6 {[%clk 0:02:54]} 6. Bd3 {[%clk 0:03:00]}  O-O {[%clk 0:02:52]} 7. O-O {[%clk 0:03:00]}  Nbd7 {[%clk 0:02:52]} 8. a4 {[%clk 0:02:58]}  a5 {[%clk 0:02:51]} 9. b3 {[%clk 0:02:55]}  e5 {[%clk 0:02:47]} 10. Ba3 {[%clk 0:02:44]}  Ne8 {[%clk 0:02:38]} 11. dxe5 {[%clk 0:02:42]}  Nxe5 {[%clk 0:02:37]} 12. Nxe5 {[%clk 0:02:41]}  Bxe5 {[%clk 0:02:38]} 13. Ra2 {[%clk 0:02:26]}  Be6 {[%clk 0:02:20]} 14. Nc4 {[%clk 0:02:24]}  Bd4 {[%clk 0:01:56]} 15. Be2 {[%clk 0:02:17]}  Bxc4 {[%clk 0:01:52]} 16. Bxc4 {[%clk 0:02:16]}  Qf6 {[%clk 0:01:49]} 17. Bc1 {[%clk 0:01:48]}  Nc7 {[%clk 0:01:48]} 18. Bd3 {[%clk 0:01:25]}  d5 {[%clk 0:01:44]} 19. c4 {[%clk 0:01:12]}  dxe4 {[%clk 0:01:38]} 20. Bxe4 {[%clk 0:01:12]}  Rad8 {[%clk 0:01:38]} 21. Qf3 {[%clk 0:01:11]}  Ne6 {[%clk 0:01:27]} 22. Qxf6 {[%clk 0:00:48]}  Bxf6 {[%clk 0:01:28]} 23. Bd2 {[%clk 0:00:46]}  Nc5 {[%clk 0:01:27]} 24. Bxa5 {[%clk 0:00:31]}  Nxe4 {[%clk 0:01:25]} 25. Bxd8 {[%clk 0:00:31]}  Rxd8 {[%clk 0:01:26]} 26. a5 {[%clk 0:00:29]}  Rd3 {[%clk 0:01:11]} 27. a6 {[%clk 0:00:29]}  bxa6 {[%clk 0:01:10]} 28. Rxa6 {[%clk 0:00:29]}  Bd4 {[%clk 0:01:08]} 29. g3 {[%clk 0:00:07]}  Nxf2 {[%clk 0:00:59]} 30. Kg2 {[%clk 0:00:08]}  Rd2 {[%clk 0:00:56]} 31. Kf3 {[%clk 0:00:08]}  c5 {[%clk 0:00:55]} 32. h4 {[%clk 0:00:04]}  h5 {[%clk 0:00:54]} 33. Kf4 {[%clk 0:00:04]}  Kg7 {[%clk 0:00:51]} 34. Ra7 {[%clk 0:00:03]}  Re2 {[%clk 0:00:46]} 35. Kf3 {[%clk 0:00:03]}  Rb2 {[%clk 0:00:44]} 36. Kf4 {[%clk 0:00:02]}  Rxb3 {[%clk 0:00:42]} 37. Rc7 {[%clk 0:00:01]}  Rc3 {[%clk 0:00:36]} 38. Rd7 {[%clk 0:00:00]}  Ng4 {[%clk 0:00:32]} 0-1


[Site "https://www.chess.com"]

[Event "Titled Tuesday Blitz July 18 Early 2023"]
[White "micke12a"]
[Black "vishwa_vijeta"]
[WhiteElo "2357"]
[BlackElo "2510"]
[Result "0-1"]
[Round "11"]
[TimeControl "180+2"]
[Date "2023.07.18"]
[WhiteClock "0:01:21"]
[BlackClock "0:01:20"]
[Board "85"]

1. d4 {[%clk 0:03:00]}  Nf6 {[%clk 0:02:59]} 2. Nc3 {[%clk 0:03:01]}  d5 {[%clk 0:02:56]} 3. Bf4 {[%clk 0:03:01]}  g6 {[%clk 0:02:56]} 4. Nb5 {[%clk 0:02:54]}  Na6 {[%clk 0:02:55]} 5. e3 {[%clk 0:02:54]}  Bg7 {[%clk 0:02:54]} 6. h3 {[%clk 0:02:53]}  c6 {[%clk 0:02:54]} 7. Na3 {[%clk 0:02:42]}  Qb6 {[%clk 0:02:46]} 8. Qc1 {[%clk 0:02:36]}  O-O {[%clk 0:02:45]} 9. Nf3 {[%clk 0:02:35]}  Bf5 {[%clk 0:02:37]} 10. Be2 {[%clk 0:02:30]}  c5 {[%clk 0:02:33]} 11. c4 {[%clk 0:02:24]}  Rac8 {[%clk 0:02:29]} 12. dxc5 {[%clk 0:02:15]}  Nxc5 {[%clk 0:02:28]} 13. O-O {[%clk 0:02:14]}  Nd3 {[%clk 0:02:06]} 14. Bxd3 {[%clk 0:01:58]}  Bxd3 {[%clk 0:02:05]} 15. Rd1 {[%clk 0:01:58]}  Bxc4 {[%clk 0:01:57]} 16. Nxc4 {[%clk 0:01:57]}  Rxc4 {[%clk 0:01:58]} 17. Qd2 {[%clk 0:01:57]}  e6 {[%clk 0:01:58]} 18. b3 {[%clk 0:01:57]}  Ne4 {[%clk 0:01:55]} 19. Qd3 {[%clk 0:01:48]}  Rc3 {[%clk 0:01:55]} 20. Qe2 {[%clk 0:01:47]}  Rfc8 {[%clk 0:01:53]} 21. Be5 {[%clk 0:01:47]}  Rc2 {[%clk 0:01:48]} 22. Qd3 {[%clk 0:01:37]}  Nxf2 {[%clk 0:01:46]} 23. Qf1 {[%clk 0:01:32]}  Bxe5 {[%clk 0:01:39]} 24. Nxe5 {[%clk 0:01:31]}  Qxe3 {[%clk 0:01:38]} 25. Re1 {[%clk 0:01:31]}  Nxh3+ {[%clk 0:01:31]} 26. Kh2 {[%clk 0:01:29]}  Qf4+ {[%clk 0:01:29]} 27. Qxf4 {[%clk 0:01:29]}  Nxf4 {[%clk 0:01:28]} 28. Kg3 {[%clk 0:01:29]}  Nxg2 {[%clk 0:01:26]} 29. Rg1 {[%clk 0:01:26]}  R8c3+ {[%clk 0:01:25]} 30. Kg4 {[%clk 0:01:25]}  h5+ {[%clk 0:01:21]} 31. Kg5 {[%clk 0:01:25]}  Kg7 {[%clk 0:01:21]} 32. Nd7 {[%clk 0:01:21]}  Rg3# {[%clk 0:01:20]} 0-1


[Site "https://www.chess.com"]